[Event "Early-Titled-Tuesday-Blitz-April-23-2024"]
[Site "Chess.com"]
[Date "2024.04.23"]
[Round "1"]
[White "Nimrod_Veinberg"]
[Black "Zampronha1971"]
[Result "1-0"]
[WhiteElo "2746"]
[BlackElo "2431"]
[TimeControl "180+1"]
[EndTime "8:08:17 PDT"]
[Termination "Nimrod_Veinberg won on time"]

1. e4 {[%clk 0:02:25.1]} 1... c5 {[%clk 0:02:58.5]} 2. Nf3 {[%clk 0:02:23.4]}
2... e6 {[%clk 0:02:59.1]} 3. c3 {[%clk 0:02:19.7]} 3... Nf6 {[%clk 0:02:57.6]}
4. e5 {[%clk 0:02:19.7]} 4... Nd5 {[%clk 0:02:58.2]} 5. d4 {[%clk 0:02:20.5]}
5... cxd4 {[%clk 0:02:58.6]} 6. cxd4 {[%clk 0:02:21.4]} 6... b6 {[%clk
0:02:57.3]} 7. Bc4 {[%clk 0:02:20.2]} 7... Bb7 {[%clk 0:02:56.7]} 8. O-O {[%clk
0:02:19.6]} 8... d6 {[%clk 0:02:55.7]} 9. Nc3 {[%clk 0:01:52.1]} 9... Nxc3
{[%clk 0:02:52.8]} 10. bxc3 {[%clk 0:01:53]} 10... Nd7 {[%clk 0:02:52.7]} 11.
Re1 {[%clk 0:01:46.5]} 11... Qc7 {[%clk 0:02:52.1]} 12. Bd3 {[%clk 0:01:39.2]}
12... dxe5 {[%clk 0:02:48.7]} 13. Nxe5 {[%clk 0:01:35.2]} 13... Nxe5 {[%clk
0:02:48.8]} 14. Rxe5 {[%clk 0:01:34.8]} 14... Bd6 {[%clk 0:02:48.2]} 15. Bb5+
{[%clk 0:01:27.2]} 15... Bc6 {[%clk 0:02:41.2]} 16. Bxc6+ {[%clk 0:01:19.5]}
16... Qxc6 {[%clk 0:02:42.1]} 17. Re3 {[%clk 0:01:13.5]} 17... O-O {[%clk
0:02:37.1]} 18. Qd3 {[%clk 0:01:12.3]} 18... Rac8 {[%clk 0:02:31.3]} 19. Rh3
{[%clk 0:01:09.9]} 19... g6 {[%clk 0:02:31.8]} 20. Bg5 {[%clk 0:01:06.1]} 20...
Qd5 {[%clk 0:02:18.7]} 21. Bf6 {[%clk 0:01:04]} 21... Qf5 {[%clk 0:02:16]} 22.
Qxf5 {[%clk 0:00:59.7]} 22... exf5 {[%clk 0:02:16.9]} 23. Re3 {[%clk 0:00:56.3]}
23... Rfe8 {[%clk 0:02:13.2]} 24. Rae1 {[%clk 0:00:52.3]} 24... Rxe3 {[%clk
0:02:08.4]} 25. Rxe3 {[%clk 0:00:53.2]} 25... h6 {[%clk 0:02:04.2]} 26. h4
{[%clk 0:00:51.3]} 26... Kf8 {[%clk 0:01:59.2]} 27. d5 {[%clk 0:00:39.5]} 27...
Rc4 {[%clk 0:01:51.2]} 28. Kf1 {[%clk 0:00:31.9]} 28... Bc5 {[%clk 0:01:36.3]}
29. Re2 {[%clk 0:00:26]} 29... Bd6 {[%clk 0:01:27.8]} 30. Ke1 {[%clk 0:00:20.2]}
30... Rc5 {[%clk 0:01:24.2]} 31. Rd2 {[%clk 0:00:20.3]} 31... h5 {[%clk
0:01:09.1]} 32. Ke2 {[%clk 0:00:20]} 32... Ke8 {[%clk 0:01:09.4]} 33. g3 {[%clk
0:00:20.2]} 33... Kd7 {[%clk 0:01:09.6]} 34. Kf3 {[%clk 0:00:20.5]} 34... Rc4
{[%clk 0:01:08.6]} 35. Bd4 {[%clk 0:00:20.2]} 35... Bc5 {[%clk 0:01:07.6]} 36.
Kf4 {[%clk 0:00:10.7]} 36... Bxd4 {[%clk 0:01:07.6]} 37. cxd4 {[%clk 0:00:10.7]}
37... f6 {[%clk 0:00:58.5]} 38. Ke3 {[%clk 0:00:03.6]} 38... Kd6 {[%clk
0:00:57.5]} 39. Rb2 {[%clk 0:00:03.9]} 39... Kxd5 {[%clk 0:00:53.2]} 40. Rb5+
{[%clk 0:00:04.4]} 40... Kd6 {[%clk 0:00:53.4]} 41. Rb3 {[%clk 0:00:02.9]} 41...
Rc2 {[%clk 0:00:51.1]} 42. Ra3 {[%clk 0:00:02.5]} 42... a5 {[%clk 0:00:34.4]}
43. Rb3 {[%clk 0:00:02.8]} 43... Kc6 {[%clk 0:00:34.8]} 44. d5+ {[%clk
0:00:03.1]} 44... Kxd5 {[%clk 0:00:14.7]} 45. Rxb6 {[%clk 0:00:03.3]} 45... Rxa2
{[%clk 0:00:13.1]} 46. Rxf6 {[%clk 0:00:03.2]} 46... a4 {[%clk 0:00:12.2]} 47.
Rxg6 {[%clk 0:00:03.7]} 47... a3 {[%clk 0:00:11.7]} 48. Ra6 {[%clk 0:00:04.6]}
48... Ra1 {[%clk 0:00:11.3]} 49. Ke2 {[%clk 0:00:05.1]} 49... a2 {[%clk
0:00:10]} 50. Kf3 {[%clk 0:00:05.8]} 50... Ke5 {[%clk 0:00:10.1]} 51. Ra5+
{[%clk 0:00:05.7]} 51... Ke6 {[%clk 0:00:10.4]} 52. Kf4 {[%clk 0:00:06.5]} 52...
Kd6 {[%clk 0:00:03.8]} 53. Ra6+ {[%clk 0:00:07.4]} 53... Kc7 {[%clk 0:00:03.6]}
54. Kxf5 {[%clk 0:00:07.9]} 54... Kb7 {[%clk 0:00:04]} 55. Ra3 {[%clk
0:00:08.3]} 55... Kb6 {[%clk 0:00:01.7]} 56. Kg5 {[%clk 0:00:08.7]} 56... Kb5
{[%clk 0:00:02.4]} 57. Kxh5 {[%clk 0:00:09.2]} 57... Kb4 {[%clk 0:00:03.3]} 58.
Ra8 {[%clk 0:00:09.4]} 58... Rf1 {[%clk 0:00:03.6]} 59. Rxa2 {[%clk 0:00:09.1]}
59... Kb3 {[%clk 0:00:04.2]} 60. Re2 {[%clk 0:00:09.5]} 1-0

[Event "Early-Titled-Tuesday-Blitz-April-23-2024"]
[Site "Chess.com"]
[Date "2024.04.23"]
[Round "1"]
[White "Zavgorodniy_Sergiy"]
[Black "Nechitaylo_Nikita"]
[Result "0-1"]
[WhiteElo "2612"]
[BlackElo "2310"]
[TimeControl "180+1"]
[EndTime "8:08:17 PDT"]
[Termination "Nechitaylo_Nikita won by resignation"]

1. e4 {[%clk 0:02:55.3]} 1... c5 {[%clk 0:02:59.6]} 2. Nf3 {[%clk 0:02:54.6]}
2... d6 {[%clk 0:03:00.1]} 3. c3 {[%clk 0:02:50.9]} 3... Nf6 {[%clk 0:03:00]} 4.
Bd3 {[%clk 0:02:50.8]} 4... g6 {[%clk 0:03:00.2]} 5. h3 {[%clk 0:02:50]} 5...
Bg7 {[%clk 0:03:00.8]} 6. Bc2 {[%clk 0:02:50.5]} 6... O-O {[%clk 0:03:01.5]} 7.
O-O {[%clk 0:02:50.6]} 7... Nc6 {[%clk 0:02:52.5]} 8. d4 {[%clk 0:02:39.1]} 8...
cxd4 {[%clk 0:02:52.8]} 9. cxd4 {[%clk 0:02:40]} 9... d5 {[%clk 0:02:46.2]} 10.
e5 {[%clk 0:02:38.5]} 10... Ne4 {[%clk 0:02:46.8]} 11. Nbd2 {[%clk 0:02:28.5]}
11... Bf5 {[%clk 0:02:39.9]} 12. Re1 {[%clk 0:02:22.7]} 12... Nxd2 {[%clk
0:01:54.1]} 13. Bxd2 {[%clk 0:02:23.6]} 13... Bxc2 {[%clk 0:01:51.7]} 14. Qxc2
{[%clk 0:02:24.5]} 14... Rc8 {[%clk 0:01:52.2]} 15. Bc3 {[%clk 0:02:10.7]} 15...
f6 {[%clk 0:01:50.2]} 16. exf6 {[%clk 0:02:06.8]} 16... Bxf6 {[%clk 0:01:51.1]}
17. Qd3 {[%clk 0:01:56.9]} 17... Qd6 {[%clk 0:01:35.5]} 18. Re2 {[%clk
0:01:52.7]} 18... a6 {[%clk 0:01:32.3]} 19. Rae1 {[%clk 0:01:52.1]} 19... b5
{[%clk 0:01:32.9]} 20. Ne5 {[%clk 0:01:46.1]} 20... b4 {[%clk 0:01:27.5]} 21.
Bd2 {[%clk 0:01:45.4]} 21... Bxe5 {[%clk 0:01:11.6]} 22. dxe5 {[%clk 0:01:44.4]}
22... Qc5 {[%clk 0:01:06.2]} 23. Rc1 {[%clk 0:01:16.6]} 23... Qb5 {[%clk
0:01:02.9]} 24. Qxb5 {[%clk 0:01:16.7]} 24... axb5 {[%clk 0:01:03.8]} 25. Bh6
{[%clk 0:01:16.7]} 25... Nd4 {[%clk 0:00:54.3]} 26. Ree1 {[%clk 0:00:55.8]}
26... Rxc1 {[%clk 0:00:52.5]} 27. Bxc1 {[%clk 0:00:56.7]} 27... Ra8 {[%clk
0:00:52.9]} 28. a3 {[%clk 0:00:32.6]} 28... bxa3 {[%clk 0:00:46.7]} 29. bxa3
{[%clk 0:00:33.5]} 29... Nc2 {[%clk 0:00:33.1]} 30. Rd1 {[%clk 0:00:31.8]} 30...
e6 {[%clk 0:00:22.6]} 31. Rd3 {[%clk 0:00:31.6]} 31... b4 {[%clk 0:00:15.5]} 32.
axb4 {[%clk 0:00:07.1]} 32... Ra1 {[%clk 0:00:16.4]} 33. Rd1 {[%clk 0:00:07.4]}
33... Nxb4 {[%clk 0:00:16.9]} 34. Rf1 {[%clk 0:00:05.2]} 34... Nd3 {[%clk
0:00:17.3]} 35. Be3 {[%clk 0:00:02.3]} 35... Rxf1+ {[%clk 0:00:17.6]} 36. Kxf1
{[%clk 0:00:03.2]} 36... Nxe5 {[%clk 0:00:18.4]} 37. Ke2 {[%clk 0:00:03.5]}
37... Kf7 {[%clk 0:00:16.9]} 38. Bd4 {[%clk 0:00:03.8]} 38... Nc6 {[%clk
0:00:17.2]} 39. Bb2 {[%clk 0:00:04.3]} 39... e5 {[%clk 0:00:17.8]} 40. Kd3
{[%clk 0:00:04.5]} 40... Ke6 {[%clk 0:00:18.3]} 41. f3 {[%clk 0:00:04.2]} 41...
h5 {[%clk 0:00:17.1]} 42. Bc1 {[%clk 0:00:04.5]} 42... Kf5 {[%clk 0:00:16.4]}
43. Bh6 {[%clk 0:00:05.2]} 43... e4+ {[%clk 0:00:15.9]} 44. Ke3 {[%clk
0:00:04.9]} 44... d4+ {[%clk 0:00:15.2]} 45. Kf2 {[%clk 0:00:04.4]} 45... e3+
{[%clk 0:00:15]} 46. Bxe3 {[%clk 0:00:04.9]} 46... dxe3+ {[%clk 0:00:15.2]} 47.
Kxe3 {[%clk 0:00:05.6]} 47... Nb4 {[%clk 0:00:12.9]} 48. g4+ {[%clk 0:00:04.7]}
48... Kg5 {[%clk 0:00:09.9]} 49. f4+ {[%clk 0:00:04.3]} 49... Kh4 {[%clk
0:00:10]} 50. Ke4 {[%clk 0:00:02.6]} 50... Kxh3 {[%clk 0:00:05.8]} 51. gxh5
{[%clk 0:00:02.1]} 51... gxh5 {[%clk 0:00:06.5]} 52. f5 {[%clk 0:00:02.8]} 52...
Nc6 {[%clk 0:00:03.8]} 53. f6 {[%clk 0:00:03.5]} 53... Nd8 {[%clk 0:00:04]} 54.
Kf5 {[%clk 0:00:02.6]} 54... h4 {[%clk 0:00:02.5]} 55. Ke5 {[%clk 0:00:02.7]}
55... Kg4 {[%clk 0:00:02.7]} 56. Kd6 {[%clk 0:00:03.2]} 56... Nf7+ {[%clk
0:00:02.2]} 57. Ke7 {[%clk 0:00:03.9]} 57... Ng5 {[%clk 0:00:02.8]} 0-1

[Event "Early-Titled-Tuesday-Blitz-April-23-2024"]
[Site "Chess.com"]
[Date "2024.04.23"]
[Round "1"]
[White "sonicdravise"]
[Black "David_George21"]
[Result "0-1"]
[WhiteElo "2617"]
[BlackElo "2321"]
[TimeControl "180+1"]
[EndTime "8:08:18 PDT"]
[Termination "David_George21 won by resignation"]

1. Nf3 {[%clk 0:02:59.4]} 1... c5 {[%clk 0:02:58.1]} 2. c4 {[%clk 0:02:59]} 2...
Nc6 {[%clk 0:02:57.8]} 3. d4 {[%clk 0:02:58.9]} 3... cxd4 {[%clk 0:02:58.4]} 4.
Nxd4 {[%clk 0:02:59.8]} 4... e5 {[%clk 0:02:54.8]} 5. Nb5 {[%clk 0:02:57.1]}
5... d6 {[%clk 0:02:54.8]} 6. g3 {[%clk 0:02:53.6]} 6... a6 {[%clk 0:02:54.9]}
7. N5c3 {[%clk 0:02:53.5]} 7... Nf6 {[%clk 0:02:53.7]} 8. Bg2 {[%clk 0:02:53.6]}
8... Be7 {[%clk 0:02:54]} 9. O-O {[%clk 0:02:53.8]} 9... O-O {[%clk 0:02:54.1]}
10. Bg5 {[%clk 0:02:53.9]} 10... Be6 {[%clk 0:02:51.8]} 11. Bxf6 {[%clk
0:02:53.3]} 11... Bxf6 {[%clk 0:02:52.5]} 12. Nd5 {[%clk 0:02:54.1]} 12... Be7
{[%clk 0:02:52.6]} 13. Nbc3 {[%clk 0:02:53.9]} 13... f5 {[%clk 0:02:52.5]} 14.
e3 {[%clk 0:02:53]} 14... Rb8 {[%clk 0:02:46.8]} 15. a4 {[%clk 0:02:45.8]} 15...
e4 {[%clk 0:02:46.3]} 16. Qe2 {[%clk 0:02:28.3]} 16... Ne5 {[%clk 0:02:44.9]}
17. Rfd1 {[%clk 0:02:07]} 17... Qe8 {[%clk 0:02:36.4]} 18. b3 {[%clk 0:01:44.5]}
18... Bf7 {[%clk 0:02:36.5]} 19. h4 {[%clk 0:01:22.3]} 19... Bh5 {[%clk
0:02:36.3]} 20. Nxe7+ {[%clk 0:01:22.4]} 20... Kh8 {[%clk 0:02:35.1]} 21. Qd2
{[%clk 0:01:06.7]} 21... Bxd1 {[%clk 0:02:34.2]} 22. Rxd1 {[%clk 0:01:01.7]}
22... Qxe7 {[%clk 0:02:33.3]} 23. Qxd6 {[%clk 0:01:01.6]} 23... Qxd6 {[%clk
0:02:30.4]} 24. Rxd6 {[%clk 0:01:02.5]} 24... Rbd8 {[%clk 0:02:27]} 25. Rxd8
{[%clk 0:00:48.4]} 25... Rxd8 {[%clk 0:02:26.6]} 26. Nd5 {[%clk 0:00:49.3]}
26... b5 {[%clk 0:02:23.2]} 27. axb5 {[%clk 0:00:47.2]} 27... axb5 {[%clk
0:02:24.1]} 28. Bf1 {[%clk 0:00:45.9]} 28... bxc4 {[%clk 0:02:22.8]} 29. bxc4
{[%clk 0:00:44.8]} 29... g6 {[%clk 0:02:22.8]} 30. Kg2 {[%clk 0:00:43.4]} 30...
Rc8 {[%clk 0:02:22.6]} 31. Ne7 {[%clk 0:00:39.6]} 31... Rc5 {[%clk 0:02:19.8]}
32. Nd5 {[%clk 0:00:39.3]} 32... Nxc4 {[%clk 0:02:19.5]} 33. Bxc4 {[%clk
0:00:39.2]} 33... Rxc4 {[%clk 0:02:20.4]} 34. Nf4 {[%clk 0:00:38.8]} 34... Rc2
{[%clk 0:02:20.2]} 35. Ne6 {[%clk 0:00:38.4]} 35... Kg8 {[%clk 0:02:20.1]} 36.
Nd4 {[%clk 0:00:38.8]} 36... Rd2 {[%clk 0:02:19.1]} 37. g4 {[%clk 0:00:39]}
37... fxg4 {[%clk 0:02:17.9]} 38. Kg3 {[%clk 0:00:39.2]} 38... h5 {[%clk
0:02:17.9]} 39. Ne6 {[%clk 0:00:39.3]} 39... Rd5 {[%clk 0:02:10.5]} 40. Nf4
{[%clk 0:00:32.6]} 40... Rd6 {[%clk 0:02:09]} 41. Ne2 {[%clk 0:00:32.9]} 41...
Kf7 {[%clk 0:02:06.8]} 42. Nc3 {[%clk 0:00:32.7]} 42... Re6 {[%clk 0:02:06.4]}
43. Kf4 {[%clk 0:00:33]} 43... Rf6+ {[%clk 0:02:06.7]} 44. Kg3 {[%clk
0:00:33.3]} 44... Re6 {[%clk 0:02:04.6]} 45. Kf4 {[%clk 0:00:32.9]} 45... Rf6+
{[%clk 0:02:04.7]} 46. Kg3 {[%clk 0:00:33.2]} 46... Rf3+ {[%clk 0:01:43.1]} 47.
Kg2 {[%clk 0:00:33.6]} 47... Rh3 {[%clk 0:01:43.3]} 48. Nxe4 {[%clk 0:00:33.5]}
48... Rxh4 {[%clk 0:01:43.6]} 49. Ng3 {[%clk 0:00:30.8]} 49... Ke6 {[%clk
0:01:38.6]} 50. Nf1 {[%clk 0:00:29.4]} 50... Rh3 {[%clk 0:01:36.9]} 51. Ng3
{[%clk 0:00:28.2]} 51... h4 {[%clk 0:01:34.8]} 52. Ne2 {[%clk 0:00:28.5]} 52...
g5 {[%clk 0:01:29.7]} 53. Ng1 {[%clk 0:00:22.2]} 53... Rf3 {[%clk 0:00:40.3]}
54. Nxf3 {[%clk 0:00:22.6]} 54... gxf3+ {[%clk 0:00:41.2]} 55. Kxf3 {[%clk
0:00:23.3]} 55... Kf5 {[%clk 0:00:41.6]} 56. Kg2 {[%clk 0:00:23.6]} 56... g4
{[%clk 0:00:40.9]} 57. Kh2 {[%clk 0:00:16.4]} 57... Ke5 {[%clk 0:00:34.5]} 58.
Kg1 {[%clk 0:00:11.7]} 58... Ke4 {[%clk 0:00:26.7]} 59. Kg2 {[%clk 0:00:11.8]}
59... Kd3 {[%clk 0:00:26.9]} 60. Kf1 {[%clk 0:00:11.7]} 60... h3 {[%clk
0:00:23.6]} 61. Kg1 {[%clk 0:00:12.1]} 61... Ke4 {[%clk 0:00:23.5]} 62. Kh2
{[%clk 0:00:11.3]} 62... Kf3 {[%clk 0:00:23.8]} 63. Kg1 {[%clk 0:00:10.7]} 63...
h2+ {[%clk 0:00:23]} 64. Kxh2 {[%clk 0:00:08.6]} 64... Kxf2 {[%clk 0:00:23.5]}
65. e4 {[%clk 0:00:09.2]} 65... g3+ {[%clk 0:00:24.1]} 66. Kh3 {[%clk
0:00:09.9]} 66... g2 {[%clk 0:00:24.4]} 67. e5 {[%clk 0:00:10.6]} 67... g1=Q
{[%clk 0:00:24.6]} 0-1

[Event "Early-Titled-Tuesday-Blitz-April-23-2024"]
[Site "Chess.com"]
[Date "2024.04.23"]
[Round "1"]
[White "Speed-O-Sonic"]
[Black "praveenb2002"]
[Result "1/2-1/2"]
[WhiteElo "2516"]
[BlackElo "2894"]
[TimeControl "180+1"]
[EndTime "8:08:19 PDT"]
[Termination "Game drawn by repetition"]

1. e4 {[%clk 0:03:00.1]} 1... c6 {[%clk 0:02:56.4]} 2. d4 {[%clk 0:02:59.5]}
2... d5 {[%clk 0:02:57.3]} 3. exd5 {[%clk 0:03:00.3]} 3... cxd5 {[%clk
0:02:55.9]} 4. Nf3 {[%clk 0:03:01]} 4... Nc6 {[%clk 0:02:50.6]} 5. Ne5 {[%clk
0:03:01.4]} 5... e6 {[%clk 0:02:39.9]} 6. Bb5 {[%clk 0:02:55.2]} 6... Bd7 {[%clk
0:02:38.3]} 7. Nxd7 {[%clk 0:02:53]} 7... Qxd7 {[%clk 0:02:38.2]} 8. c3 {[%clk
0:02:44.2]} 8... Bd6 {[%clk 0:02:33.2]} 9. O-O {[%clk 0:02:44.5]} 9... Nf6
{[%clk 0:02:27.4]} 10. Nd2 {[%clk 0:02:43.8]} 10... O-O {[%clk 0:02:25.8]} 11.
Re1 {[%clk 0:02:42]} 11... Rae8 {[%clk 0:02:20.8]} 12. g3 {[%clk 0:02:38.2]}
12... a6 {[%clk 0:02:16]} 13. Bd3 {[%clk 0:02:38.3]} 13... e5 {[%clk 0:02:13.5]}
14. dxe5 {[%clk 0:02:37.4]} 14... Nxe5 {[%clk 0:02:14.4]} 15. Be2 {[%clk
0:02:25.8]} 15... Re7 {[%clk 0:01:57.7]} 16. Nf3 {[%clk 0:02:11.7]} 16... Neg4
{[%clk 0:01:54.1]} 17. Bg5 {[%clk 0:01:41.2]} 17... Rfe8 {[%clk 0:01:16.6]} 18.
Bxf6 {[%clk 0:01:13.8]} 18... Nxf6 {[%clk 0:01:16.3]} 19. Bd3 {[%clk 0:01:14.3]}
19... Ne4 {[%clk 0:01:10.7]} 20. Qc2 {[%clk 0:01:05.2]} 20... Bc5 {[%clk
0:01:07.5]} 21. Nd4 {[%clk 0:01:00.5]} 21... h5 {[%clk 0:01:00.5]} 22. Re2
{[%clk 0:00:54.3]} 22... h4 {[%clk 0:00:55.9]} 23. Rae1 {[%clk 0:00:53.7]} 23...
Ng5 {[%clk 0:00:39]} 24. Rxe7 {[%clk 0:00:26.2]} 24... Rxe7 {[%clk 0:00:33.9]}
25. Rxe7 {[%clk 0:00:25.6]} 25... Qxe7 {[%clk 0:00:28.5]} 26. Qe2 {[%clk
0:00:25.8]} 26... Qf6 {[%clk 0:00:28.8]} 27. Qe8+ {[%clk 0:00:18.2]} 27... Bf8
{[%clk 0:00:29]} 28. Qd7 {[%clk 0:00:19]} 28... Qe5 {[%clk 0:00:20.5]} 29. Qf5
{[%clk 0:00:07.7]} 29... Qe1+ {[%clk 0:00:18.5]} 30. Bf1 {[%clk 0:00:08.5]}
30... Ne4 {[%clk 0:00:16.6]} 31. gxh4 {[%clk 0:00:04.5]} 31... Nd2 {[%clk
0:00:12.2]} 32. Qd3 {[%clk 0:00:03.9]} 32... Bd6 {[%clk 0:00:11.9]} 33. Nf3
{[%clk 0:00:03.5]} 33... Nxf3+ {[%clk 0:00:05.2]} 34. Qxf3 {[%clk 0:00:04.4]}
34... Qe5 {[%clk 0:00:05.9]} 35. Qg2 {[%clk 0:00:04.3]} 35... d4 {[%clk
0:00:05.3]} 36. cxd4 {[%clk 0:00:04.6]} 36... Qxd4 {[%clk 0:00:06.2]} 37. Qxb7
{[%clk 0:00:04.8]} 37... Bc5 {[%clk 0:00:04.7]} 38. Qa8+ {[%clk 0:00:04.2]}
38... Kh7 {[%clk 0:00:04.5]} 39. Qf3 {[%clk 0:00:05]} 39... Kg8 {[%clk
0:00:03.6]} 40. Qa8+ {[%clk 0:00:05.1]} 40... Kh7 {[%clk 0:00:03.6]} 41. Qf3
{[%clk 0:00:05.8]} 41... Qxh4 {[%clk 0:00:03.8]} 42. Qd3+ {[%clk 0:00:05.8]}
42... Kg8 {[%clk 0:00:03.4]} 43. Qg3 {[%clk 0:00:05.7]} 43... Qf6 {[%clk
0:00:03.2]} 44. Qb8+ {[%clk 0:00:06.3]} 44... Bf8 {[%clk 0:00:03.4]} 45. Qb3
{[%clk 0:00:05.1]} 45... Qd6 {[%clk 0:00:03.1]} 46. Qg3 {[%clk 0:00:04.8]} 46...
Qf6 {[%clk 0:00:03.1]} 47. b3 {[%clk 0:00:04.7]} 47... Qb2 {[%clk 0:00:03.2]}
48. Bc4 {[%clk 0:00:03.7]} 48... Qxa2 {[%clk 0:00:03.3]} 49. Qf3 {[%clk
0:00:04.3]} 49... Qa1+ {[%clk 0:00:03.7]} 50. Kg2 {[%clk 0:00:04.6]} 50... Qf6
{[%clk 0:00:03.5]} 51. Qxf6 {[%clk 0:00:05.2]} 51... gxf6 {[%clk 0:00:04.4]} 52.
Bxa6 {[%clk 0:00:06.1]} 52... Kg7 {[%clk 0:00:05]} 53. Bc4 {[%clk 0:00:07]}
53... f5 {[%clk 0:00:05.4]} 54. Kf3 {[%clk 0:00:07.5]} 54... Kf6 {[%clk
0:00:06]} 55. h4 {[%clk 0:00:07.6]} 55... Kg6 {[%clk 0:00:05.9]} 56. Kg3 {[%clk
0:00:08.1]} 56... Bd6+ {[%clk 0:00:05.8]} 57. Kh3 {[%clk 0:00:08.3]} 57... Bc5
{[%clk 0:00:06.4]} 58. f3 {[%clk 0:00:08]} 58... Bd6 {[%clk 0:00:06.8]} 59. Bd5
{[%clk 0:00:08.3]} 59... Bc5 {[%clk 0:00:06.6]} 60. Bc4 {[%clk 0:00:08.6]} 60...
Bd6 {[%clk 0:00:07.1]} 61. Bd5 {[%clk 0:00:08.7]} 61... Bc5 {[%clk 0:00:07.5]}
62. Bc4 {[%clk 0:00:09.2]} 1/2-1/2

[Event "Early-Titled-Tuesday-Blitz-April-23-2024"]
[Site "Chess.com"]
[Date "2024.04.23"]
[Round "1"]
[White "Gryffindorac8"]
[Black "blitzking1729"]
[Result "0-1"]
[WhiteElo "2437"]
[BlackElo "2762"]
[TimeControl "180+1"]
[EndTime "8:08:22 PDT"]
[Termination "blitzking1729 won by resignation"]

1. d4 {[%clk 0:03:00.9]} 1... d5 {[%clk 0:02:53.5]} 2. c4 {[%clk 0:02:59.8]}
2... e6 {[%clk 0:02:53.5]} 3. Nf3 {[%clk 0:02:59.9]} 3... Nf6 {[%clk 0:02:53.2]}
4. g3 {[%clk 0:03:00.1]} 4... dxc4 {[%clk 0:02:51.6]} 5. Bg2 {[%clk 0:03:00.1]}
5... a6 {[%clk 0:02:51.8]} 6. O-O {[%clk 0:02:59.9]} 6... b5 {[%clk 0:02:50.5]}
7. Ne5 {[%clk 0:02:57.2]} 7... c6 {[%clk 0:02:43.7]} 8. b3 {[%clk 0:02:31.5]}
8... cxb3 {[%clk 0:02:40.6]} 9. Nxc6 {[%clk 0:02:28.4]} 9... Qb6 {[%clk
0:02:33.2]} 10. Na5 {[%clk 0:02:27.8]} 10... Ra7 {[%clk 0:02:27.5]} 11. Nxb3
{[%clk 0:02:27]} 11... Bb7 {[%clk 0:02:25]} 12. d5 {[%clk 0:02:13.1]} 12... Bxd5
{[%clk 0:01:55.5]} 13. Be3 {[%clk 0:02:11]} 13... Qb7 {[%clk 0:01:54.6]} 14.
Bxd5 {[%clk 0:02:04.4]} 14... Nxd5 {[%clk 0:01:54.1]} 15. Bxa7 {[%clk
0:02:04.2]} 15... Qxa7 {[%clk 0:01:54.8]} 16. e4 {[%clk 0:01:41.4]} 16... Nf6
{[%clk 0:01:46]} 17. N1d2 {[%clk 0:01:40.7]} 17... Be7 {[%clk 0:01:40.1]} 18.
Rc1 {[%clk 0:01:38.2]} 18... O-O {[%clk 0:01:39.8]} 19. Qc2 {[%clk 0:01:38]}
19... Nbd7 {[%clk 0:01:37.4]} 20. Qc7 {[%clk 0:01:34]} 20... Qxc7 {[%clk
0:01:26]} 21. Rxc7 {[%clk 0:01:34.9]} 21... Bb4 {[%clk 0:01:26.5]} 22. Ra7
{[%clk 0:01:19.9]} 22... a5 {[%clk 0:01:25.9]} 23. Rb7 {[%clk 0:00:50.3]} 23...
a4 {[%clk 0:00:55.4]} 24. Rxb5 {[%clk 0:00:48.5]} 24... Rb8 {[%clk 0:00:51.4]}
25. Rxb8+ {[%clk 0:00:34.4]} 25... Nxb8 {[%clk 0:00:51.1]} 26. Rb1 {[%clk
0:00:19.4]} 26... axb3 {[%clk 0:00:50.2]} 27. Rxb3 {[%clk 0:00:20.3]} 27... Nc6
{[%clk 0:00:49.3]} 28. Nc4 {[%clk 0:00:15.3]} 28... Nxe4 {[%clk 0:00:47.6]} 29.
a3 {[%clk 0:00:15.4]} 29... Bc5 {[%clk 0:00:43]} 30. Rb5 {[%clk 0:00:13.2]}
30... f5 {[%clk 0:00:36.9]} 31. Kg2 {[%clk 0:00:10.8]} 31... Bxf2 {[%clk
0:00:36.6]} 32. a4 {[%clk 0:00:09.4]} 32... Bc5 {[%clk 0:00:25.3]} 33. a5 {[%clk
0:00:09.1]} 33... Kf7 {[%clk 0:00:25.8]} 34. a6 {[%clk 0:00:08]} 34... Kf6
{[%clk 0:00:25.4]} 35. Na5 {[%clk 0:00:08]} 35... Na7 {[%clk 0:00:17.3]} 36. Rb7
{[%clk 0:00:05.6]} 36... h5 {[%clk 0:00:16.3]} 37. Nc4 {[%clk 0:00:05.6]} 37...
g5 {[%clk 0:00:15.8]} 38. Nb6 {[%clk 0:00:05.9]} 38... Bxb6 {[%clk 0:00:15.2]}
39. Rxb6 {[%clk 0:00:06.8]} 39... Nc3 {[%clk 0:00:14.6]} 40. Rb7 {[%clk
0:00:06.3]} 40... Ncb5 {[%clk 0:00:15.1]} 41. Kf3 {[%clk 0:00:05.7]} 41... Ke5
{[%clk 0:00:15.1]} 42. Ke3 {[%clk 0:00:04.9]} 42... h4 {[%clk 0:00:11.7]} 43.
Kd3 {[%clk 0:00:03.9]} 43... hxg3 {[%clk 0:00:11.7]} 44. hxg3 {[%clk 0:00:04.8]}
44... Kd5 {[%clk 0:00:10.1]} 45. Rb6 {[%clk 0:00:02.2]} 45... g4 {[%clk
0:00:09.5]} 46. Ke3 {[%clk 0:00:01.5]} 46... Nd6 {[%clk 0:00:07.3]} 47. Rb7
{[%clk 0:00:01.1]} 47... Nxb7 {[%clk 0:00:06.6]} 48. axb7 {[%clk 0:00:02]} 48...
Nc6 {[%clk 0:00:07.3]} 49. Kf4 {[%clk 0:00:02.7]} 49... Nb8 {[%clk 0:00:05.8]}
50. Kg5 {[%clk 0:00:03]} 50... Kc6 {[%clk 0:00:05.9]} 51. Kf4 {[%clk 0:00:03.9]}
51... Kxb7 {[%clk 0:00:05.4]} 52. Ke5 {[%clk 0:00:04.8]} 52... Kc6 {[%clk
0:00:05.8]} 53. Kxe6 {[%clk 0:00:05.3]} 53... f4 {[%clk 0:00:06.4]} 54. gxf4
{[%clk 0:00:05.7]} 54... g3 {[%clk 0:00:07.3]} 55. f5 {[%clk 0:00:06.3]} 55...
g2 {[%clk 0:00:08]} 56. f6 {[%clk 0:00:06.7]} 56... g1=Q {[%clk 0:00:08.7]} 57.
f7 {[%clk 0:00:07]} 57... Nd7 {[%clk 0:00:09.4]} 0-1